bitfinex/quotes_ETHUSD_20250720
["timestamp","ask_amount","ask_price","bid_price","bid_amount"]
[1753049117436,0.022,3746.9,3746.4,2.66916233]
[1753049117646,0.022,3746.9,3746.4,2.66922912]
[1753049117849,0.022,3746.9,3746.8,2.66894416]
[1753049118054,0.022,3746.9,3746.7,2.66899133]
[1753049118439,0.022,3746.9,3746.8,2.66894416]
[1753049118834,0.022,3746.9,3746.5,3.11545131]
[1753049119015,0.022,3746.9,3746.6,2.66907989]
[1753049119217,0.022,3746.9,3746.8,2.66894416]
[1753049120343,0.022,3746.9,3746.5,2.66915618]
[1753049120513,0.022,3746.9,3746.4,4.479]
[1753049120719,0.022,3746.9,3746.4,2.66921566]
[1753049121052,0.022,3746.9,3746.2,4.479]
[1753049121251,0.022,3746.9,3746.7,2.6689455]
[1753049121561,0.022,3746.9,3746.4,0.4463]
[1753049121562,0.022,3746.9,3746.8,2.66894416]
[1753049122154,0.022,3746.9,3746.8,3.11524416]
[1753049122328,0.022,3746.9,3746.8,4.63427722]
[1753049122853,0.002,3746.9,3746.8,4.63427722]
[1753049123044,0.1328,3747.7,3747.6,2.66837442]
[1753049123224,0.1328,3747.7,3745.3,0.7989]
[1753049123225,0.7992,3747.6,3745.3,0.7989]
[1753049123419,4.11229733,3747.5,3746.7,2.66898166]
[1753049124020,4.11229733,3747.5,3746.9,2.66881322]
[1753049124225,0.03335557,3747.5,3746.3,4.9223]
[1753049124416,0.7992,3747.6,3747.1,2.66870826]
[1753049124620,0.7992,3747.6,3746.3,4.93559785]
[1753049124621,0.7992,3747.6,3747.0,2.66878565]
[1753049125058,1.41810341,3747.6,3747.0,2.66878565]
[1753049125363,0.7992,3747.6,3746.8,0.4463]
[1753049125536,0.7992,3747.6,3747.3,2.66854136]
[1753049126060,0.02,3747.9,3746.9,2.66887293]
[1753049126356,0.02,3747.9,3746.8,4.9153]
[1753049126555,2.66832701,3747.7,3747.0,2.66874524]
[1753049126777,3.24071664,3747.6,3746.7,7.13499013]
[1753049126939,0.57233911,3747.6,3746.7,4.466]
[1753049127266,0.05335201,3747.9,3746.7,4.466]
[1753049127438,2.66825708,3747.8,3747.1,2.66870536]
[1753049127662,0.02,3747.9,3747.4,2.66846803]
[1753049128703,0.02,3747.9,3747.5,2.66844353]
[1753049128992,0.02,3747.9,3747.5,2.66843328]
[1753049129196,0.02,3747.9,3747.1,0.4416]
[1753049129895,0.02,3747.9,3747.8,2.66823202]
[1753049130272,0.02,3747.9,3747.6,2.66833897]
[1753049130791,0.02,3747.9,3747.7,2.66828597]
[1753049131250,0.02,3747.9,3747.2,0.7732]
[1753049131455,0.02,3747.9,3747.8,2.66823202]
[1753049131959,0.02,3747.9,3747.8,3.10983202]
[1753049132362,0.02,3747.9,3747.8,3.70225378]
[1753049132715,0.02,3747.9,3747.8,8.15225378]
[1753049132918,1e-08,3747.9,3747.8,8.9137748]
[1753049133091,1e-08,3747.9,3747.8,11.9137748]
[1753049133297,1e-08,3747.9,3747.8,12.0465748]
[1753049135321,1e-08,3747.9,3747.8,11.0946108]
[1753049135524,1e-08,3747.9,3747.8,12.0365748]
[1753049135728,1e-08,3747.9,3747.8,14.1654038]
[1753049136017,1e-08,3747.9,3747.8,12.0405748]
[1753049137143,1e-08,3747.9,3747.8,14.4031818]
[1753049137329,1e-08,3747.9,3747.8,12.0405748]
[1753049138191,1e-08,3747.9,3747.8,7.01743202]
[1753049138403,1e-08,3747.9,3747.8,7.68363202]
[1753049138721,1e-08,3747.9,3747.8,7.24203202]
[1753049139627,1e-08,3747.9,3747.8,7.68363202]
[1753049139800,1e-08,3747.9,3747.8,10.68363202]
[1753049140526,1e-08,3747.9,3747.8,10.67963202]
[1753049140729,1e-08,3747.9,3747.8,2.80103202]
[1753049140933,1e-08,3747.9,3747.8,7.10423202]
[1753049141294,1e-08,3747.9,3746.6,0.4416]
[1753049141295,0.79840001,3747.9,3746.6,0.4416]
[1753049141498,3.46957903,3747.6,3745.9,3.43876277]
[1753049141796,2.66902496,3746.7,3746.0,2.66947036]
[1753049142017,0.1328,3746.3,3745.9,0.001]
[1753049142427,0.16616625,3746.3,3746.0,2.66951062]
[1753049142601,0.1328,3746.3,3746.0,2.66951062]
[1753049142820,0.1328,3746.3,3746.1,2.68943177]
[1753049143148,0.1328,3746.3,3746.2,2.66937162]
[1753049143650,0.1328,3746.3,3746.2,3.11097162]
[1753049143834,0.8012,3746.9,3746.2,0.4416]
[1753049144146,0.8048,3747.4,3747.3,2.66858805]
[1753049144825,0.9376,3747.4,3747.3,2.66858805]
[1753049145411,0.9376,3747.4,3746.9,2.6688524]
[1753049145616,0.9376,3747.4,3746.8,7.09892182]
[1753049145952,0.9376,3747.4,3747.3,2.66858805]
[1753049146319,0.9376,3747.4,3747.1,2.66873048]
[1753049146518,0.1328,3747.2,3747.1,2.66873048]
[1753049146930,0.1328,3747.2,3746.8,4.428]
[1753049146931,0.1328,3747.2,3746.5,0.1328]
[1753049147120,0.1328,3746.9,3746.0,0.1328]
[1753049147460,0.1328,3746.3,3745.9,0.001]
[1753049147763,0.1328,3746.3,3746.0,2.66946524]
[1753049147971,0.1328,3746.3,3746.2,2.66937162]
[1753049148550,2.88601714,3747.4,3746.7,2.66896756]
[1753049148751,6.74724852,3747.7,3746.5,2.66915788]
[1753049148752,0.1328,3746.6,3746.5,2.66915788]
[1753049149153,0.8133,3747.1,3747.0,2.6688017]
[1753049149963,0.1328,3747.0,3746.5,0.4416]
[1753049150465,0.1328,3747.0,3746.4,4.424]
[1753049150768,0.1328,3747.0,3746.9,2.66887293]
[1753049152245,0.8213,3747.5,3747.4,2.66851683]
[1753049153761,0.1328,3747.4,3746.9,0.4416]
[1753049153968,0.1328,3747.4,3747.0,2.66878755]
[1753049154272,0.1328,3747.4,3747.1,2.66870864]
[1753049154471,0.1328,3747.4,3747.3,2.66858805]
[1753049154835,1e-08,3747.9,3747.7,2.66824204]
[1753049155042,0.1328,3747.8,3747.7,2.66824204]
[1753049155258,0.1328,3747.8,3747.7,3.10984204]
[1753049155862,1e-08,3747.9,3747.8,2.66823202]
[1753049156062,1e-08,3747.9,3747.7,7.65064204]
[1753049156574,1e-08,3747.9,3747.8,2.66823202]
[1753049156879,1e-08,3747.9,3747.5,4.405]
[1753049157050,2.66817636,3747.9,3747.5,4.405]
[1753049157379,2.66825036,3747.8,3747.3,0.1328]
[1753049157548,2.80114959,3747.7,3747.1,4.5388]
[1753049158781,2.66861053,3747.3,3746.7,4.9774]
[1753049159194,0.03335824,3747.2,3746.7,0.1328]
[1753049159347,0.03335824,3747.2,3746.5,4.403]
[1753049159348,2.80165138,3747.0,3746.5,4.403]
[1753049159547,0.1328,3747.0,3746.5,4.403]
[1753049159755,0.1328,3747.0,3746.4,0.1328]
[1753049159984,0.1328,3747.0,3746.5,2.66915788]
[1753049160360,0.1328,3747.0,3746.9,2.66887293]
[1753049160869,0.7658,3747.5,3747.0,2.66875448]
[1753049161070,0.1328,3747.3,3747.0,2.6688017]
[1753049161257,0.1328,3747.3,3747.2,2.66865926]
[1753049161455,0.82950001,3747.9,3747.1,0.45899144]
[1753049161456,0.1328,3747.7,3747.6,2.6683135]
[1753049161682,0.1328,3747.7,3747.2,4.399]
[1753049161983,0.1328,3747.7,3747.6,2.66837442]
[1753049162353,1e-08,3747.9,3747.8,2.66823202]
[1753049162770,1e-08,3747.9,3747.8,4.02413202]
[1753049162964,1e-08,3747.9,3747.8,5.1347106]
[1753049163808,1e-08,3747.9,3747.8,8.1347106]
[1753049164613,1e-08,3747.9,3747.8,12.5347106]
[1753049164910,0.002,3749.4,3749.3,2.66716453]
[1753049165488,0.002,3749.4,3749.3,3.11286453]
[1753049165683,0.002,3749.4,3749.3,10.52711682]
[1753049165921,0.002,3749.4,3749.3,10.51386453]
[1753049166227,0.002,3749.4,3749.3,11.83885715]
[1753049166544,0.002,3749.4,3749.3,11.97165715]
[1753049166886,0.002,3749.4,3749.3,8.97165715]
[1753049167082,0.002,3749.4,3749.3,7.64666453]
[1753049168519,0.002,3749.4,3749.3,10.64666453]
[1753049170047,0.002,3749.4,3749.3,10.18796453]
[1753049170817,0.002,3749.4,3749.3,0.1328]
[1753049171022,0.002,3749.4,3749.1,0.1328]
[1753049171254,0.1348,3749.4,3749.0,2.66737043]
[1753049171557,0.1328,3749.1,3748.6,2.6676083]
[1753049172244,0.1328,3749.1,3748.7,2.66759021]
[1753049172400,2.70077618,3749.0,3748.3,2.66782382]
[1753049172608,0.1328,3748.6,3748.4,2.66779677]
[1753049172822,0.7987,3748.5,3748.4,2.66779677]
[1753049173032,0.1328,3748.6,3748.5,2.66773376]
[1753049173652,0.25091998,3749.4,3748.5,3.12666298]
[1753049173929,0.1328,3749.0,3748.9,2.66744911]
[1753049174151,0.1328,3749.0,3748.6,2.66761043]
[1753049174357,0.1328,3749.0,3748.4,0.1328]
[1753049174559,0.1328,3748.6,3748.5,2.66773342]
[1753049175263,0.1328,3748.6,3748.3,2.6678761]
[1753049175264,0.8183,3749.1,3748.8,2.66746947]
[1753049175460,0.1328,3749.0,3748.5,2.6677335]
[1753049175667,0.1328,3749.0,3748.6,2.66759444]
[1753049176467,0.1328,3749.0,3748.9,2.66744911]
[1753049177162,0.1348,3749.0,3748.9,2.66744911]
[1753049177463,0.1348,3749.0,3748.7,2.66753552]
[1753049177769,0.1348,3749.0,3748.9,2.66744911]
[1753049179267,0.1348,3749.0,3748.4,4.5068]
[1753049179768,0.1348,3749.0,3748.9,2.66744911]
[1753049180469,0.002,3749.0,3748.9,3.11314911]
[1753049180637,0.002,3749.0,3748.9,3.12640852]
[1753049181450,0.002,3749.0,3748.9,3.25920852]
[1753049181846,0.002,3749.0,3748.9,7.28828275]
[1753049182078,0.002,3749.4,3749.3,2.66716453]
[1753049182373,0.002,3749.4,3749.3,10.02716453]
[1753049182561,0.002,3749.4,3749.3,10.15996453]
[1753049182871,1e-08,3749.4,3749.3,10.60566453]
[1753049183073,1e-08,3749.4,3749.3,12.0144258]
[1753049183971,1e-08,3749.4,3749.3,7.6544258]
[1753049184172,1e-08,3749.4,3749.3,10.60566453]
[1753049185245,1e-08,3749.4,3749.3,10.60166453]
[1753049185647,1e-08,3749.4,3749.3,10.02116453]
[1753049186167,1e-08,3749.4,3749.2,2.66718443]
[1753049186363,1e-08,3749.4,3749.3,2.66716453]
[1753049188077,1e-08,3749.4,3749.1,2.80010451]
[1753049188078,1e-08,3749.4,3749.2,2.66723516]
[1753049188279,1e-08,3749.4,3749.1,2.66729603]
[1753049188452,1e-08,3749.4,3748.4,0.4728]
[1753049188653,0.9359,3749.3,3748.6,2.80046259]
[1753049188851,0.9359,3749.3,3749.0,2.66736712]
[1753049189279,0.1328,3749.3,3749.0,0.4728]
[1753049189457,1e-08,3749.4,3749.3,2.66716453]
[1753049189657,1e-08,3749.4,3749.3,2.68041682]
[1753049189977,1e-08,3749.4,3749.3,3.13996453]
[1753049190663,1e-08,3749.4,3749.1,0.1328]
[1753049190864,0.1328,3749.3,3749.1,2.6673062]
[1753049191555,0.1328,3749.3,3748.9,2.66742955]
[1753049191755,0.1328,3749.3,3749.0,2.66733575]
[1753049191977,0.1328,3749.3,3749.2,2.66723567]
[1753049192178,1e-08,3749.4,3749.3,2.66716453]
[1753049192583,1e-08,3749.4,3749.3,3.15321682]
[1753049192793,1e-08,3749.4,3749.3,6.86806207]
[1753049192995,1e-08,3749.4,3749.3,6.85480978]
[1753049193500,1e-08,3749.4,3749.3,5.79996453]
[1753049193698,1e-08,3749.4,3749.3,5.66716453]
[1753049194077,1e-08,3749.4,3749.3,10.49121682]
[1753049194275,1e-08,3749.4,3749.3,10.47796453]
[1753049194475,1e-08,3749.4,3749.3,10.47896453]
[1753049195262,1e-08,3749.4,3749.3,11.79358574]
[1753049195598,1e-08,3749.4,3749.3,10.47896453]
[1753049196960,1e-08,3749.4,3749.3,10.47496453]
[1753049197363,1e-08,3749.4,3749.3,6.13996453]
[1753049197618,1e-08,3749.4,3749.3,10.47396453]
[1753049197924,1e-08,3749.4,3749.3,5.66716453]
[1753049198128,1e-08,3749.4,3749.3,10.47396453]
[1753049198426,1e-08,3749.4,3749.3,11.78808574]
[1753049199218,1e-08,3749.4,3749.3,12.56238574]
[1753049199518,1e-08,3750.5,3750.2,0.7743]
[1753049199816,1e-08,3750.5,3750.4,6.44068225]
[1753049200035,1e-08,3750.5,3750.4,8.05268014]
[1753049200254,0.02,3750.9,3750.8,2.66609789]
[1753049200509,0.24848524,3752.5,3751.8,5.66538728]
[1753049200724,0.7684,3752.7,3751.8,5.66538728]
[1753049200874,0.7684,3752.7,3750.9,3.13882682]
[1753049200875,2.69818031,3752.6,3751.3,0.4728]
[1753049201209,0.03331023,3752.6,3751.8,2.66538728]
[1753049201509,0.7684,3752.7,3751.8,2.66538728]
[1753049201809,3.43317029,3752.7,3751.8,2.66538728]
[1753049202279,0.7684,3752.7,3751.8,6.15139514]
[1753049202621,0.7684,3752.7,3751.8,7.53612436]
[1753049203897,0.03331023,3752.6,3751.8,7.328]
[1753049204132,0.1328,3752.5,3751.8,10.12618728]
[1753049205033,0.1328,3752.5,3751.8,10.59898728]
[1753049205532,0.03331201,3752.4,3751.2,0.8109]
[1753049205718,0.8015,3751.8,3751.5,0.1328]
[1753049205900,3.46689175,3751.8,3750.4,0.7744]
[1753049206097,2.66566892,3751.5,3750.8,2.66608836]
[1753049206403,0.1328,3751.3,3750.8,2.66608836]
[1753049206611,0.1328,3751.3,3750.8,2.66605773]
[1753049206901,0.7653,3751.2,3750.6,0.1328]
[1753049207542,0.7653,3751.2,3749.6,1.2263]
[1753049207543,0.9828,3751.2,3749.6,1.2263]
[1753049207747,6.77806198,3751.3,3749.8,2.666748]
[1753049207748,0.1328,3750.3,3749.8,2.666748]
[1753049207961,0.798,3750.4,3749.9,0.4728]
[1753049208118,0.1328,3750.5,3750.4,2.66632571]
[1753049208913,0.798,3750.8,3750.3,2.66643895]
[1753049209109,0.798,3750.8,3750.2,4.324]
[1753049209110,0.1328,3750.7,3750.2,4.324]
[1753049209354,0.1328,3750.7,3750.1,4.323]
[1753049209514,4.07894176,3750.5,3749.4,4.323]
[1753049209711,0.1328,3750.1,3750.0,2.66666666]
[1753049210343,0.798,3750.8,3749.7,0.4728]
[1753049210514,0.1328,3750.4,3750.0,2.66665191]
[1753049210718,0.1328,3750.4,3750.1,2.66658921]
[1753049211347,0.1328,3750.4,3750.0,2.66664793]
[1753049211543,0.1328,3750.4,3749.8,0.1328]
[1753049211745,2.66645493,3750.3,3749.7,2.66685927]
[1753049211946,0.1328,3750.1,3749.7,2.66685927]
[1753049212546,0.798,3750.8,3749.8,0.4728]
[1753049212847,0.1328,3750.4,3750.1,2.66652985]
[1753049213055,0.1328,3750.4,3749.8,0.4728]
[1753049213231,0.1328,3750.4,3749.8,1.2785977]
[1753049213441,0.1328,3750.4,3749.9,0.1328]
[1753049213755,0.1328,3750.4,3750.3,2.66645335]
[1753049214120,0.1328,3750.4,3750.2,2.66651285]
[1753049214782,0.1328,3750.4,3750.3,2.66645335]
[1753049214917,0.1328,3750.4,3750.2,2.6665179]
[1753049215267,0.1328,3750.4,3750.3,2.66645335]
[1753049215817,0.1328,3750.4,3750.1,2.66659555]
[1753049216243,0.1328,3750.4,3750.2,2.66652218]
[1753049216950,0.1328,3750.4,3750.3,2.66645335]
[1753049217250,0.1328,3750.4,3750.2,2.66650457]
[1753049217747,0.1328,3750.4,3750.0,2.66666314]
[1753049217748,0.1328,3750.4,3750.0,2.66666666]
[1753049217924,0.1328,3750.4,3749.5,0.4732]
[1753049218125,0.1328,3750.4,3750.0,2.66661454]
[1753049218347,0.69312017,3750.4,3750.0,2.66661454]
[1753049218551,0.1328,3750.4,3750.3,2.66645335]
[1753049218753,0.1328,3750.4,3750.2,2.66646445]
[1753049218918,0.1328,3750.4,3750.3,2.66645335]
[1753049219119,0.1328,3750.4,3749.9,3.1328]
[1753049219363,0.1328,3750.4,3750.2,2.66650957]
[1753049219664,0.1328,3750.4,3750.0,2.66666666]
[1753049219665,0.1328,3750.4,3750.0,2.66661088]
[1753049219871,0.1328,3750.4,3749.9,0.1328]
[1753049220185,0.1328,3750.1,3749.8,2.66680889]
[1753049220316,0.1328,3750.1,3749.9,2.66673777]
[1753049220514,0.1328,3750.1,3750.0,2.66666666]
[1753049220815,0.1328,3750.5,3750.1,2.66659555]
[1753049221016,5.47040165,3750.4,3749.7,2.66686216]
[1753049221266,0.1328,3750.1,3750.0,2.66666666]
[1753049221421,0.1328,3750.1,3749.8,2.67998959]
[1753049221422,0.1328,3750.3,3750.1,2.6665894]
[1753049221621,0.77,3750.2,3749.1,0.02]
[1753049221866,8.90763732,3749.2,3749.1,0.02]
[1753049222158,6.24040165,3749.2,3748.4,0.1328]
[1753049222317,3.43734728,3748.2,3748.1,0.021]
[1753049222831,3.43734728,3748.2,3747.1,0.4932]
[1753049222832,0.7694,3747.8,3747.3,0.1328]
[1753049223057,2.66865926,3747.2,3747.1,0.02]
[1753049223458,0.7694,3747.8,3747.1,0.02]
[1753049223762,3.4368083,3750.2,3747.2,5.66865926]
[1753049223763,0.8019,3748.4,3747.2,5.66865926]
[1753049223918,0.1328,3748.3,3747.7,0.1328]
[1753049224122,4.318,3748.9,3747.9,2.66816083]
[1753049224123,0.8019,3748.8,3747.9,2.66816083]
[1753049224361,0.8019,3748.8,3747.8,0.48647684]
[1753049224362,0.1328,3748.6,3748.5,2.66773376]
[1753049224540,0.62404017,3749.1,3748.4,0.01426688]
[1753049224541,4.317,3749.1,3748.4,0.01426688]
[1753049224878,0.1328,3748.9,3748.8,2.66752027]
[1753049225021,0.1328,3748.9,3748.6,2.66764168]
[1753049225022,0.1328,3749.2,3749.1,2.66729736]
[1753049225396,0.1328,3749.2,3748.6,0.1328]
[1753049225397,0.1328,3749.2,3748.8,2.66750807]
[1753049225535,0.1328,3749.2,3749.1,2.66730682]
[1753049227459,0.65817,3749.2,3749.1,2.66730682]
[1753049227959,0.1328,3749.2,3749.1,2.66730682]
[1753049228258,0.1328,3749.2,3748.9,2.667392]
[1753049228660,0.1328,3749.2,3749.0,2.66737201]
[1753049228857,0.1328,3749.2,3749.1,2.66730682]
[1753049230935,0.1328,3749.4,3749.1,0.4732]
[1753049231263,0.1328,3749.6,3749.5,2.66702226]
[1753049231835,4.307,3749.8,3749.3,2.66716453]
[1753049232168,0.166136,3749.7,3749.1,2.80009837]
[1753049232332,0.166136,3749.7,3748.7,0.4732]
[1753049232333,0.033336,3749.7,3749.0,2.66732186]
[1753049232533,0.1328,3749.3,3748.7,0.1328]
[1753049232761,0.7844,3749.3,3748.9,2.66740186]
[1753049232985,0.1328,3749.1,3748.5,0.1328]
[1753049233187,0.1328,3749.1,3748.5,2.80051166]
[1753049233398,0.1328,3748.7,3748.4,0.001]
[1753049233573,0.7844,3749.3,3749.2,2.66723567]
[1753049233780,0.2375,3749.9,3749.0,2.66737796]
[1753049233781,4.306,3749.1,3749.0,2.66737796]
[1753049233964,4.4408,3749.3,3748.6,0.1328]
[1753049234198,4.4408,3749.3,3749.1,2.66724801]
[1753049234353,0.1328,3749.3,3749.2,2.66723567]
[1753049234549,4.4408,3749.3,3749.1,2.66728762]
[1753049236145,0.03334044,3749.2,3748.4,0.001]
[1753049236364,0.1328,3748.8,3748.6,2.66764431]
[1753049236558,0.1328,3748.8,3748.4,2.6687963]
[1753049236559,0.1328,3748.8,3748.7,2.66759143]
[1753049236780,4.4358,3748.8,3748.6,2.66763676]
[1753049236960,4.4358,3748.8,3748.5,2.66766511]
[1753049237156,5.2454,3748.8,3748.5,2.66768143]
[1753049237478,5.2454,3748.8,3748.6,2.66765553]
[1753049237679,5.2454,3748.8,3748.4,2.66873488]
[1753049237881,5.2454,3748.8,3748.4,0.001]
[1753049238091,4.4358,3748.8,3748.4,0.4742]
[1753049238254,4.4358,3748.8,3748.7,2.66759143]
[1753049239076,4.87938,3748.8,3748.4,0.001]
[1753049239256,4.87938,3748.8,3748.6,2.66760423]
[1753049239465,0.57638,3748.8,3748.7,2.66759143]
[1753049239778,4.297,3748.8,3748.7,3.14079143]
[1753049240153,0.1328,3749.0,3748.9,2.66744911]
[1753049240588,4.4278,3749.3,3749.0,2.66737796]
[1753049240792,0.03334044,3749.2,3748.4,0.001]
[1753049241089,0.1328,3748.9,3748.7,2.66754375]
[1753049242090,0.1328,3748.9,3748.6,2.66764744]
[1753049242596,0.002,3748.8,3748.7,2.66759143]
[1753049242949,0.002,3748.8,3748.6,2.66765045]
[1753049243164,0.002,3748.8,3748.5,2.66767797]
[1753049243364,0.002,3748.8,3748.7,2.66759143]
[1753049243782,0.002,3748.8,3748.6,2.66763408]
[1753049243979,0.478424,3748.8,3748.4,0.001]
[1753049244178,5.47596764,3748.6,3748.4,0.001]
[1753049244392,6.99008043,3748.5,3748.4,0.001]
[1753049244695,0.7539,3747.9,3747.0,0.607]
[1753049244902,0.1328,3747.8,3747.2,3.15514536]
[1753049245062,0.1328,3747.8,3747.7,2.66830322]
[1753049245261,0.7539,3748.3,3748.2,2.66794728]
[1753049245568,0.1328,3748.1,3748.0,2.66803953]
[1753049245769,4.4248,3748.1,3748.0,2.66803953]
[1753049246163,0.1328,3748.1,3748.0,2.66803953]
[1753049246988,0.1328,3748.1,3747.9,2.66815394]
[1753049247192,0.65057,3748.1,3747.6,0.1328]
[1753049247362,0.65057,3748.1,3747.7,2.66830322]
[1753049247558,0.1328,3748.1,3748.0,2.66808964]
[1753049247762,0.8202,3748.7,3748.0,0.61927542]
[1753049247991,4.288,3748.5,3748.4,2.66780493]
[1753049249500,4.287,3748.7,3748.6,2.66764797]
[1753049249703,4.287,3748.7,3748.4,2.66780493]
[1753049249882,0.1348,3748.8,3748.5,2.66773311]
[1753049250218,4.4178,3748.8,3748.3,2.66786006]
[1753049250520,0.03334489,3748.7,3748.0,0.1328]
[1753049250684,2.66783727,3748.4,3747.7,2.66827016]
[1753049250891,2.66783727,3748.4,3747.5,6.95344563]
[1753049250892,2.8007643,3748.2,3747.6,2.66832218]
[1753049251127,0.1328,3748.2,3747.5,0.1328]
[1753049251791,0.1328,3748.2,3747.8,2.66822876]
[1753049252407,0.1328,3748.2,3747.7,2.66827777]
[1753049252736,0.1328,3748.2,3747.8,2.66822533]
[1753049252876,0.1328,3748.2,3748.1,2.66801846]
[1753049253098,2.66729722,3749.2,3748.1,0.1328]
[1753049253099,0.1328,3748.7,3748.1,0.1328]
[1753049253423,2.66771091,3748.6,3747.9,2.66809787]
[1753049253725,0.1328,3748.5,3748.0,2.6680799]
[1753049253929,4.283,3748.6,3748.4,2.66780493]
[1753049254097,4.283,3748.6,3748.5,3.13873376]
[1753049254291,4.283,3748.6,3748.1,3.27181718]
[1753049254497,4.283,3748.6,3748.3,0.471]
[1753049254697,4.283,3748.6,3748.3,3.13882695]
[1753049255197,2.66786864,3748.4,3747.8,2.66821947]
[1753049255400,0.1328,3748.2,3747.9,2.6681108]
[1753049255600,0.1328,3748.2,3747.8,2.66821135]
[1753049256428,0.1328,3748.2,3747.6,2.6683673]
[1753049256429,0.1328,3748.2,3748.1,2.66801846]
[1753049256624,0.1328,3748.2,3747.9,0.471]
[1753049257033,0.1328,3748.2,3747.9,2.66811694]
[1753049257195,0.84095388,3748.2,3747.6,2.66833165]
[1753049257397,0.84095388,3748.2,3747.5,3.27218948]
[1753049257623,0.764,3748.1,3747.5,0.1328]
[1753049257941,0.764,3748.1,3747.1,0.021]
[1753049257942,2.80111662,3747.7,3747.1,0.021]
[1753049258098,2.70150109,3748.0,3747.1,0.021]
[1753049258099,4.31235468,3747.6,3747.1,0.021]
[1753049258303,2.80131683,3747.4,3747.1,0.021]
[1753049258522,3.43265926,3747.2,3747.1,0.021]
[1753049260147,7.71165926,3747.2,3747.1,0.021]
[1753049261401,7.92915926,3747.2,3747.1,0.021]
[1753049261802,10.92915926,3747.2,3747.1,0.021]
[1753049262004,2.66922912,3746.4,3746.3,0.001]
[1753049262206,2.66937162,3746.2,3745.9,0.001]
[1753049262535,2.66951414,3746.0,3745.9,0.001]
[1753049263230,6.94751414,3746.0,3745.9,0.001]
[1753049263542,10.16501414,3746.0,3745.9,0.001]
[1753049263747,12.31310428,3746.0,3745.9,0.001]
[1753049264310,2.67015567,3745.1,3742.6,0.8126]
[1753049264510,2.6705122,3744.6,3743.5,0.8126]
[1753049264752,4.31738229,3744.5,3743.4,2.67130904]
[1753049264915,0.73173823,3744.4,3743.1,0.8326]
[1753049265122,4.284,3744.5,3743.6,2.67115473]
[1753049265320,2.6707911,3744.3,3743.5,6.14229081]
[1753049265525,2.70418246,3744.2,3743.1,0.8326]
[1753049265721,3.70878246,3744.2,3743.1,0.02]
[1753049265946,4.77513055,3744.2,3743.1,0.02]
[1753049266305,12.06013055,3744.2,3743.1,0.02]
[1753049266617,3.483911,3743.2,3743.1,0.02]
[1753049266807,3.48462489,3742.2,3741.1,0.02]
[1753049267010,14.86908806,3742.2,3741.1,0.02]
[1753049267256,16.80784271,3742.2,3741.1,0.02]
[1753049267740,16.80784271,3742.2,3741.1,2.69300793]
[1753049268319,16.80784271,3742.2,3741.1,0.02]
[1753049268320,2.67293916,3741.2,3741.1,0.02]
[1753049268520,9.17886317,3741.2,3741.1,0.02]
[1753049268738,14.85180233,3741.2,3741.1,0.02]
[1753049268940,4.87986317,3741.2,3741.1,0.02]
[1753049269262,0.7934,3741.2,3741.1,0.02]
[1753049269464,4.31,3741.5,3741.1,0.491]
[1753049269677,4.31,3741.5,3741.1,0.02]
[1753049269815,4.31,3741.5,3741.4,2.67279627]
[1753049270014,4.31,3741.5,3741.2,2.67293916]
[1753049270254,4.31,3741.6,3741.3,2.67284563]
[1753049270461,0.03340906,3741.5,3741.1,0.02]
[1753049270982,4.312,3741.4,3741.3,2.67286771]
[1753049271130,0.8276,3742.4,3741.3,0.471]
[1753049271335,0.03340191,3742.3,3741.3,0.471]
[1753049271533,0.92604651,3742.2,3741.4,2.67279627]
[1753049271802,2.67247049,3741.9,3740.7,0.471]
[1753049271972,0.03340638,3741.8,3740.7,0.471]
[1753049272134,4.315,3741.7,3740.8,2.67316025]
[1753049272478,4.08646317,3741.1,3740.1,0.02]
[1753049272635,0.7861,3740.9,3740.1,0.02]
[1753049272833,0.03341531,3740.8,3740.1,0.02]
[1753049273079,4.321,3740.8,3740.1,0.491]
[1753049273278,0.7861,3741.4,3741.0,2.67307277]
[1753049273466,0.7861,3741.4,3741.1,2.67297115]
[1753049273670,5.59835632,3741.4,3740.4,0.471]
[1753049273988,0.03341084,3741.3,3740.8,2.67320754]
[1753049274160,0.03341084,3741.3,3740.1,0.02]
[1753049274161,5.59835632,3741.4,3740.3,2.67358233]
[1753049274489,5.63176627,3741.4,3741.0,2.67306882]
[1753049274642,5.59835632,3741.4,3740.9,2.67313635]
[1753049274843,5.63176627,3741.4,3740.3,3.14458146]
[1753049275059,0.1336,3740.8,3740.7,2.67329644]
[1753049275665,0.1336,3740.8,3740.6,2.67335537]
[1753049275860,0.1336,3740.8,3740.7,2.67329644]
[1753049276095,4.35741084,3741.3,3740.6,2.67335802]
[1753049276399,4.322,3741.6,3740.7,0.471]
[1753049276555,0.8293,3742.0,3741.9,2.67243913]
[1753049276745,0.92604651,3742.2,3740.9,0.7799]
[1753049276746,0.7721,3742.5,3742.3,2.67214386]
[1753049276952,0.7721,3742.5,3741.9,0.471]
[1753049277187,0.1336,3742.0,3741.9,0.471]
[1753049277359,0.1336,3742.0,3741.3,0.471]
[1753049277560,0.1336,3741.7,3740.8,4.795]
[1753049277854,0.1336,3741.2,3741.1,2.67301061]
[1753049278821,4.326,3742.1,3741.1,0.4379]
[1753049278998,0.1336,3741.8,3741.1,0.45129202]
[1753049279186,4.08646317,3742.3,3741.5,2.6727172]
[1753049279396,0.87768923,3742.2,3741.5,2.6727172]
[1753049279599,0.87768923,3742.2,3741.1,0.4379]
[1753049279824,0.1336,3742.2,3741.6,2.67265341]
[1753049280134,0.1336,3742.2,3742.1,2.6722963]
[1753049280544,0.1336,3742.2,3742.1,3.1101963]
[1753049280838,0.02,3742.9,3742.8,2.67179651]
[1753049281228,0.02,3742.9,3742.8,3.10969651]
[1753049281549,0.02,3742.9,3742.8,0.4379]
[1753049281837,0.8078,3742.9,3742.0,2.67231967]
[1753049282037,0.8078,3742.9,3741.9,0.4379]
[1753049282038,0.52282377,3742.8,3741.9,0.4379]